bitfinex/quotes_BTCUSD_20220201
["timestamp","ask_amount","ask_price","bid_price","bid_amount"]
[1643722632771,0.00075451,38598.0,38596.0,1.36849474]
[1643722633018,0.129555,38601.0,38598.0,22.55914549]
[1643722633318,0.42333905,38603.0,38598.0,22.55914549]
[1643722633319,0.28827627,38603.0,38599.0,0.62306306]
[1643722633521,0.28827627,38603.0,38600.0,1.37]
[1643722633522,0.22350527,38603.0,38600.0,1.37]
[1643722633722,0.22350527,38603.0,38602.0,1.37]
[1643722633918,0.22350527,38603.0,38602.0,1.720808]
[1643722634119,0.22350527,38603.0,38602.0,1.80659426]
[1643722636321,0.22350527,38603.0,38602.0,0.43659426]
[1643722636517,0.22350527,38603.0,38602.0,0.350808]
[1643722636769,0.22350527,38603.0,38598.0,23.97694549]
[1643722636770,0.22350527,38603.0,38599.0,0.60248043]
[1643722636971,0.22350527,38603.0,38600.0,1.37]
[1643722637169,0.22350527,38603.0,38601.0,0.350808]
[1643722637368,0.28827327,38603.0,38601.0,0.350808]
[1643722637568,0.28827327,38603.0,38598.0,22.55914549]
[1643722637569,0.28977288,38603.0,38599.0,0.60125451]
[1643722637768,0.28977288,38603.0,38602.0,1.75535936]
[1643722637969,0.27500488,38603.0,38602.0,2.10616736]
[1643722638167,0.27500488,38603.0,38602.0,1.80616736]
[1643722638568,0.22350527,38603.0,38602.0,1.80616736]
[1643722638771,0.22350527,38603.0,38602.0,1.87092136]
[1643722639570,0.27350527,38603.0,38602.0,1.80616736]
[1643722639771,0.32350527,38603.0,38602.0,1.80616736]
[1643722639971,0.27350527,38603.0,38602.0,1.80616736]
[1643722640171,0.32350527,38603.0,38602.0,1.80616736]
[1643722640419,0.32350527,38603.0,38602.0,0.35088579]
[1643722640918,0.32350527,38603.0,38602.0,1.72088579]
[1643722641119,0.32350527,38603.0,38602.0,0.35088579]
[1643722641320,0.32350527,38603.0,38602.0,7.779e-05]
[1643722641520,0.32350527,38603.0,38602.0,0.35088579]
[1643722641720,0.22350527,38603.0,38602.0,1.97991065]
[1643722641920,0.27350527,38603.0,38602.0,1.97991065]
[1643722643321,0.22350527,38603.0,38602.0,1.97991065]
[1643722643720,0.22350527,38603.0,38602.0,1.72088579]
[1643722644563,0.27350527,38603.0,38602.0,1.72088579]
[1643722644765,0.27350527,38603.0,38602.0,0.35088579]
[1643722645165,0.27350527,38603.0,38602.0,7.779e-05]
[1643722645463,0.27350527,38603.0,38602.0,0.35088579]
[1643722645665,0.32350527,38603.0,38602.0,7.779e-05]
[1643722646165,0.27350527,38603.0,38602.0,7.779e-05]
[1643722646364,0.32350527,38603.0,38602.0,7.779e-05]
[1643722646769,9.066e-05,38601.0,38600.0,0.0043]
[1643722646965,0.05009066,38601.0,38600.0,0.0043]
[1643722647165,9.066e-05,38601.0,38600.0,0.0043]
[1643722649617,0.30009066,38601.0,38600.0,0.0043]
[1643722649816,0.35009066,38601.0,38600.0,0.0043]
[1643722650015,0.56301489,38601.0,38600.0,0.0043]
[1643722650617,0.064791,38596.0,38583.0,0.27189895]
[1643722650817,0.114791,38596.0,38581.0,1.37]
[1643722651017,0.24925979,38589.0,38582.0,0.5]
[1643722651220,0.24925979,38589.0,38579.0,0.0017724]
[1643722651221,0.08520856,38583.0,38579.0,0.0017724]
[1643722651422,0.014418,38582.0,38579.0,0.0017724]
[1643722651677,0.18520856,38583.0,38574.0,0.0031]
[1643722652073,0.18520856,38583.0,38579.0,0.00177204]
[1643722652272,0.142483,38580.0,38579.0,0.00177204]
[1643722652670,0.192483,38580.0,38579.0,0.00177204]
[1643722653071,0.05,38580.0,38577.0,0.07809211]
[1643722653272,0.05,38581.0,38578.0,0.35258006]
[1643722653473,0.05,38584.0,38578.0,0.35258006]
[1643722653671,0.16480257,38591.0,38578.0,0.35258006]
[1643722653872,0.21480257,38591.0,38578.0,0.00177206]
[1643722654071,0.064799,38585.0,38583.0,0.09237174]
[1643722654474,0.259229,38599.0,38584.0,0.25926439]
[1643722654679,0.77629909,38600.0,38584.0,0.67802239]
[1643722654873,0.02171405,38588.0,38585.0,1.37]
[1643722655073,0.00149909,38600.0,38586.0,0.62306306]
[1643722655276,0.42679266,38599.0,38587.0,1.37]
[1643722655518,0.42679266,38599.0,38588.0,0.27225506]
[1643722655719,0.51966738,38599.0,38594.0,1.37]
[1643722656119,0.51966738,38599.0,38584.0,0.0478]
[1643722656320,0.51966738,38599.0,38586.0,0.064777]
[1643722656321,0.27225506,38598.0,38586.0,0.064777]
[1643722656519,0.27225506,38598.0,38587.0,1.37]
[1643722656722,0.05,38598.0,38587.0,1.37]
[1643722657119,0.47539931,38593.0,38587.0,1.37]
[1643722657324,0.52539931,38593.0,38587.0,1.37]
[1643722657721,0.37781372,38593.0,38587.0,1.37]
[1643722657920,0.064786,38597.0,38588.0,0.350808]
[1643722658222,0.02179612,38596.0,38589.0,1.37]
[1643722658420,0.02179612,38596.0,38590.0,0.350808]
[1643722658720,0.0014993,38600.0,38590.0,0.350808]
[1643722658721,0.2032909,38599.0,38590.0,0.350808]
[1643722658921,0.22768913,38598.0,38589.0,1.37]
[1643722659174,0.22768913,38598.0,38589.0,1.46276449]
[1643722659175,0.17271245,38593.0,38589.0,1.46276449]
[1643722659367,0.17271245,38593.0,38589.0,1.37]
[1643722659368,0.21110817,38592.0,38589.0,1.37]
[1643722659569,0.22271245,38593.0,38590.0,0.350808]
[1643722659770,0.22271245,38593.0,38589.0,1.37]
[1643722660570,0.2619204,38591.0,38589.0,1.37]
[1643722660770,0.22271245,38593.0,38589.0,1.37]
[1643722660771,0.27271245,38593.0,38590.0,0.350808]
[1643722660970,0.1,38593.0,38589.0,1.37]
[1643722661172,0.05,38593.0,38591.0,1.37]
[1643722661371,0.05,38592.0,38591.0,1.37]
[1643722661572,0.05,38592.0,38586.0,7.017e-05]
[1643722661771,0.05,38592.0,38587.0,0.350808]
[1643722661970,0.17723497,38595.0,38586.0,7.017e-05]
[1643722662371,0.1272041,38591.0,38586.0,7.017e-05]
[1643722662575,0.25548873,38590.0,38584.0,1.37]
[1643722662772,0.05,38588.0,38584.0,1.37]
[1643722663020,0.30548873,38590.0,38585.0,0.350808]
[1643722663221,0.35548873,38590.0,38583.0,0.10474377]
[1643722663421,0.30548873,38590.0,38583.0,0.10434177]
[1643722663623,0.05,38590.0,38584.0,0.350808]
[1643722664022,0.05,38590.0,38589.0,0.07653499]
[1643722664321,0.114793,38592.0,38585.0,1.37]
[1643722664322,0.05,38591.0,38585.0,1.37]
[1643722664526,0.31381837,38591.0,38582.0,6.577e-05]
[1643722664723,1.15,38583.0,38582.0,6.577e-05]
[1643722664922,0.05,38583.0,38582.0,6.577e-05]
[1643722665323,0.1,38586.0,38582.0,6.577e-05]
[1643722665725,0.39299072,38586.0,38582.0,6.577e-05]
[1643722666325,0.1,38586.0,38584.0,0.08353233]
[1643722666773,0.05,38586.0,38584.0,0.08353233]
[1643722667175,0.05,38590.0,38584.0,0.08353233]
[1643722667472,0.27086893,38588.0,38584.0,0.08353233]
[1643722667674,0.32086893,38588.0,38584.0,0.08353233]
[1643722669073,0.05,38588.0,38585.0,1.37]
[1643722669273,0.07193666,38590.0,38586.0,0.350808]
[1643722669473,0.07193666,38590.0,38587.0,1.37]
[1643722669674,0.04957093,38590.0,38588.0,0.350808]
[1643722669873,0.26963586,38599.0,38589.0,1.37]
[1643722670073,0.41969631,38596.0,38590.0,0.09538339]
[1643722670277,0.02075144,38595.0,38590.0,0.09538339]
[1643722670515,0.02075144,38595.0,38591.0,1.37]
[1643722670814,0.34333577,38596.0,38591.0,1.37]
[1643722671013,0.21285917,38596.0,38591.0,1.37]
[1643722671216,0.31285917,38596.0,38591.0,1.37]
[1643722671614,0.31285917,38596.0,38590.0,0.09538339]
[1643722672016,0.14669691,38594.0,38590.0,0.09538339]
[1643722672218,0.19669691,38594.0,38582.0,0.28870651]
[1643722672516,0.24669691,38594.0,38583.0,0.064786]
[1643722672716,0.24669691,38594.0,38589.0,6.577e-05]
[1643722673315,0.1,38594.0,38589.0,6.577e-05]
[1643722673516,0.05,38594.0,38590.0,0.08163603]
[1643722673717,0.27896328,38600.0,38591.0,1.96343681]
[1643722673718,0.00126546,38600.0,38591.0,1.96343681]
[1643722674568,9.066e-05,38601.0,38591.0,1.96343681]
[1643722674765,9.066e-05,38601.0,38598.0,0.10276689]
[1643722674766,0.26833026,38600.0,38598.0,0.10276689]
[1643722674966,0.26833026,38600.0,38591.0,1.61262881]
[1643722675166,0.26833026,38600.0,38591.0,1.37]
[1643722675766,0.1330943,38596.0,38591.0,1.37]
[1643722675968,0.1330943,38596.0,38592.0,0.10172903]
[1643722676168,0.1830943,38596.0,38592.0,0.10172903]
[1643722676367,0.1830943,38596.0,38589.0,6.577e-05]
[1643722676571,0.2330943,38596.0,38589.0,6.577e-05]
[1643722677368,0.53875355,38590.0,38589.0,6.577e-05]
[1643722677568,0.69365371,38590.0,38589.0,6.577e-05]
[1643722677767,0.29365371,38590.0,38584.0,1.46662154]
[1643722678027,0.29365371,38590.0,38585.0,1.720808]
[1643722678222,0.18875355,38590.0,38585.0,0.350808]
[1643722678522,0.18875355,38590.0,38585.0,0.5927442]
[1643722678523,0.05,38590.0,38585.0,0.5927442]
[1643722678724,0.1,38594.0,38586.0,1.37]
[1643722678922,0.11963383,38594.0,38586.0,1.37]
[1643722679326,0.11963383,38594.0,38587.0,0.350808]
[1643722679523,0.11963383,38594.0,38590.0,0.09380948]
[1643722679724,0.11963383,38594.0,38584.0,6.573e-05]
[1643722679725,0.05,38594.0,38591.0,1.37]
[1643722680024,0.48136201,38595.0,38584.0,6.573e-05]
[1643722680025,0.53136201,38595.0,38584.0,6.573e-05]
[1643722680426,0.53136201,38595.0,38584.0,1.37006573]
[1643722680729,0.53136201,38595.0,38588.0,0.09405648]
[1643722680926,0.54615401,38595.0,38588.0,0.09405648]
[1643722681128,0.48136201,38595.0,38589.0,1.37]
[1643722681528,0.48136201,38595.0,38588.0,0.09405648]
[1643722682265,0.53136201,38595.0,38588.0,0.09405648]
[1643722682465,0.5498025,38595.0,38593.0,6.576e-05]
[1643722683063,0.01844049,38595.0,38593.0,6.576e-05]
[1643722683270,0.064791,38597.0,38593.0,6.576e-05]
[1643722683867,0.00126536,38600.0,38593.0,6.576e-05]
[1643722684066,0.28489821,38599.0,38593.0,6.576e-05]
[1643722684267,0.014418,38598.0,38580.0,0.54901421]
[1643722684469,0.1,38596.0,38580.0,1.37]
[1643722684667,0.0478,38595.0,38581.0,0.27154356]
[1643722684867,0.12711726,38587.0,38581.0,0.27154356]
[1643722685067,0.12711726,38587.0,38579.0,0.0016552]
[1643722685268,0.24029339,38585.0,38579.0,0.0016552]
[1643722685517,0.24029339,38585.0,38579.0,0.00165498]
[1643722685518,0.09935307,38583.0,38579.0,0.00165498]
[1643722685820,0.14935307,38583.0,38579.0,0.00165498]
[1643722686218,0.05,38583.0,38580.0,0.350808]
[1643722686418,0.05,38583.0,38581.0,1.37]
[1643722686618,0.064801,38591.0,38581.0,1.37]
[1643722687018,0.02000389,38584.0,38581.0,1.37]
[1643722687220,0.02000389,38584.0,38582.0,0.350808]
[1643722687519,0.02000389,38584.0,38582.0,0.27154356]
[1643722687719,0.02000389,38584.0,38583.0,1.37006374]
[1643722687919,0.05,38588.0,38583.0,1.72087174]
[1643722688119,0.064796,38593.0,38583.0,1.37006374]
[1643722688522,0.29347117,38592.0,38583.0,1.37006374]
[1643722688719,0.39347117,38592.0,38585.0,1.37]
[1643722688918,0.01816106,38589.0,38587.0,1.47466301]
[1643722689768,0.39347117,38592.0,38587.0,0.10466301]
[1643722690368,0.05,38592.0,38587.0,1.72433122]
[1643722690871,0.1,38596.0,38587.0,1.72433122]
[1643722691069,0.05,38597.0,38587.0,1.72433122]
[1643722691070,0.02027783,38594.0,38587.0,1.72433122]
[1643722691868,0.49826201,38595.0,38588.0,0.24537966]
[1643722692069,0.54826201,38595.0,38587.0,1.47466301]
[1643722692269,0.54826201,38595.0,38589.0,1.37]
[1643722692470,0.54826201,38595.0,38589.0,1.37006372]
[1643722693120,0.54826201,38595.0,38589.0,6.372e-05]
[1643722693121,0.61305601,38595.0,38589.0,6.372e-05]
[1643722693320,1.3,38594.0,38584.0,1.37]
[1643722693523,1.3,38594.0,38585.0,0.24692229]
[1643722693721,0.61305601,38595.0,38581.0,0.29447936]
[1643722694322,0.61305601,38595.0,38585.0,0.09163684]
[1643722694520,0.02123835,38594.0,38586.0,1.37]
[1643722694721,0.61305601,38595.0,38586.0,1.37]
[1643722695120,0.61305601,38595.0,38585.0,0.09163684]
[1643722695321,0.61305601,38595.0,38586.0,1.37]
[1643722695922,0.61305601,38595.0,38588.0,1.37]
[1643722696325,0.10095289,38590.0,38588.0,1.37]
[1643722696524,0.61305601,38595.0,38588.0,1.37]
[1643722696525,0.49826201,38595.0,38588.0,1.37]
[1643722696775,0.54826201,38595.0,38588.0,1.37]
[1643722697074,0.54826201,38595.0,38586.0,1.37]
[1643722697270,0.13082722,38589.0,38586.0,1.37]
[1643722697672,0.18082722,38589.0,38586.0,1.37]
[1643722697872,0.34765419,38595.0,38588.0,1.37006173]
[1643722698072,0.28286119,38595.0,38590.0,1.37]
[1643722698473,0.28042927,38594.0,38588.0,6.173e-05]
[1643722698676,0.014418,38593.0,38588.0,6.173e-05]
[1643722698973,0.26535134,38594.0,38588.0,6.173e-05]
[1643722699171,0.079221,38593.0,38588.0,6.173e-05]
[1643722699372,0.45297159,38592.0,38588.0,6.173e-05]
[1643722699571,1.4985563,38589.0,38588.0,6.173e-05]
[1643722699773,0.4129743,38589.0,38588.0,6.173e-05]
[1643722700072,0.4485563,38589.0,38588.0,6.173e-05]
[1643722700717,0.4485563,38589.0,38588.0,2.00006173]
[1643722702018,0.70569327,38589.0,38588.0,2.00006173]
[1643722702220,0.4485563,38589.0,38588.0,2.00006173]
[1643722703418,0.18148709,38589.0,38588.0,2.00006173]
[1643722703822,0.05,38589.0,38588.0,2.00006173]
[1643722704019,0.2,38590.0,38588.0,2.00006173]
[1643722704275,0.05,38590.0,38588.0,2.00006173]
[1643722704476,0.064804,38591.0,38588.0,2.00006173]
[1643722704674,0.064791,38593.0,38588.0,2.00006173]
[1643722705474,0.064791,38593.0,38590.0,0.0894647]
[1643722705876,0.059791,38593.0,38590.0,0.0894647]
[1643722706478,0.109791,38593.0,38590.0,0.0894647]
[1643722706674,0.059791,38593.0,38590.0,0.0894647]
[1643722706874,0.159791,38593.0,38590.0,0.0894647]
[1643722707474,0.159791,38593.0,38591.0,1.37]
[1643722707475,0.109791,38593.0,38591.0,1.37]
[1643722707675,0.059791,38593.0,38591.0,1.37]
[1643722709516,0.059791,38593.0,38590.0,0.08952643]
[1643722709716,0.05800467,38593.0,38590.0,0.08952643]
[1643722711519,0.05800467,38593.0,38590.0,6.173e-05]
[1643722712370,0.05800467,38593.0,38588.0,3.37006173]
[1643722712573,0.25832785,38593.0,38588.0,2.00006173]
[1643722712771,0.194391,38592.0,38588.0,2.00006173]
[1643722713170,0.194391,38592.0,38588.0,1.99501036]
[1643722713171,0.05,38591.0,38588.0,1.99501036]
[1643722713672,0.114796,38591.0,38588.0,1.99501036]
[1643722714672,0.114796,38591.0,38589.0,0.350808]
[1643722714873,0.064787,38593.0,38589.0,0.350808]
[1643722715073,0.02167633,38596.0,38590.0,1.37]
[1643722715272,0.02167633,38596.0,38591.0,0.350808]
[1643722715527,0.02167633,38596.0,38592.0,1.37]
[1643722715728,0.02167633,38596.0,38594.0,1.37]
[1643722715927,9.066e-05,38601.0,38595.0,1.785577]
[1643722716128,0.06486366,38601.0,38595.0,1.785577]
[1643722716731,9.066e-05,38601.0,38595.0,1.785577]
[1643722717129,0.08353556,38601.0,38595.0,1.785577]
[1643722717330,0.06486266,38601.0,38595.0,1.785577]
[1643722717530,0.34970297,38601.0,38595.0,1.720808]
[1643722717731,9.066e-05,38601.0,38596.0,0.30024747]
[1643722718032,0.06486066,38601.0,38597.0,1.720808]
[1643722718331,0.06486066,38601.0,38599.0,19.9199]
[1643722718531,0.06486066,38601.0,38600.0,0.350808]
[1643722719031,0.12963466,38601.0,38600.0,0.350808]
[1643722719268,0.22963466,38601.0,38600.0,0.350808]
[1643722721068,0.22963466,38601.0,38599.0,19.9199]
[1643722721268,0.22963466,38601.0,38600.0,0.350808]
[1643722721671,0.22963466,38601.0,38599.0,19.9199]
[1643722721869,0.38607836,38601.0,38599.0,19.9199]
[1643722722270,0.16486066,38601.0,38600.0,6.168e-05]
[1643722723316,0.16486066,38601.0,38600.0,0.35086968]
[1643722723516,0.16486066,38601.0,38600.0,6.168e-05]
[1643722724518,0.06486066,38601.0,38600.0,6.168e-05]
[1643722725121,0.06486066,38601.0,38600.0,0.35086968]
[1643722725522,0.06486066,38601.0,38600.0,1.72086968]
[1643722725723,9.066e-05,38601.0,38600.0,1.72086968]
[1643722726521,9.066e-05,38601.0,38600.0,0.35086968]
[1643722727377,9.066e-05,38601.0,38600.0,0.59611588]
[1643722727774,9.066e-05,38601.0,38600.0,0.35086968]
[1643722727975,9.066e-05,38601.0,38600.0,0.59844838]
[1643722728775,9.066e-05,38601.0,38600.0,1.96844838]
[1643722730277,9.066e-05,38601.0,38600.0,0.59844838]
[1643722730518,9.066e-05,38601.0,38600.0,0.35086968]
[1643722730921,9.066e-05,38601.0,38600.0,0.59639141]
[1643722731120,9.066e-05,38601.0,38600.0,1.97184583]
[1643722731320,9.066e-05,38601.0,38600.0,2.06319973]
[1643722731520,9.066e-05,38601.0,38600.0,1.97184583]
[1643722732320,9.066e-05,38601.0,38600.0,0.60184583]
[1643722732523,9.066e-05,38601.0,38600.0,0.35086968]
[1643722732719,9.066e-05,38601.0,38600.0,1.96432929]
[1643722734569,9.066e-05,38601.0,38600.0,0.35086968]
[1643722735468,0.3880776,38603.0,38600.0,1.72086968]
[1643722735668,0.3880776,38603.0,38600.0,0.35086968]
[1643722736268,0.3880776,38603.0,38600.0,0.59669195]
[1643722736469,0.3880776,38603.0,38600.0,0.59329461]
[1643722736671,0.3880776,38603.0,38600.0,0.35086968]
[1643722737272,0.5176166,38603.0,38600.0,0.59584151]
[1643722737472,0.06477427,38602.0,38600.0,0.35086968]
[1643722737919,0.11477427,38602.0,38600.0,0.35086968]
[1643722740221,0.05,38602.0,38600.0,0.35086968]
[1643722743264,0.05,38602.0,38600.0,1.72086968]
[1643722744565,0.4676166,38603.0,38600.0,1.72086968]
[1643722744866,0.00149738,38604.0,38601.0,1.63973201]
[1643722745066,0.00149738,38604.0,38603.0,2.12]
[1643722745265,0.00149738,38604.0,38603.0,1.720808]
[1643722745521,0.01,38609.0,38603.0,1.720808]
[1643722745826,0.00149741,38605.0,38604.0,1.772708]
[1643722746021,0.00149741,38605.0,38604.0,1.720808]
[1643722746821,0.12885158,38605.0,38600.0,6.168e-05]
[1643722747023,0.06477139,38604.0,38601.0,0.350808]
[1643722747224,0.12954339,38604.0,38602.0,6.36e-05]
[1643722748425,0.064772,38604.0,38603.0,0.350808]
[1643722749269,0.064772,38604.0,38603.0,1.720808]
[1643722749468,0.064772,38604.0,38603.0,0.350808]
[1643722750269,0.064772,38604.0,38603.0,0.60325577]
[1643722751669,0.064772,38604.0,38603.0,1.97325577]
[1643722752270,0.064772,38604.0,38603.0,1.97331937]
[1643722752926,0.064772,38604.0,38603.0,0.3508716]
[1643722753126,0.114772,38604.0,38603.0,0.59127728]
[1643722753326,0.164772,38604.0,38603.0,0.3508716]
[1643722753732,0.1,38604.0,38603.0,0.3508716]
[1643722753928,0.1,38604.0,38603.0,6.36e-05]
[1643722754128,0.05,38604.0,38603.0,6.36e-05]
[1643722754730,0.11476936,38604.0,38603.0,0.3508716]
[1643722756335,0.06476936,38604.0,38603.0,0.3508716]
[1643722756969,0.06476936,38604.0,38603.0,0.60295942]
[1643722757172,0.06626841,38605.0,38603.0,0.60125866]
[1643722757370,0.06626841,38605.0,38603.0,0.3508716]
[1643722757570,0.064771,38605.0,38603.0,6.36e-05]
[1643722757771,0.114771,38605.0,38603.0,6.36e-05]
[1643722758171,0.05,38604.0,38603.0,6.36e-05]
[1643722759773,0.05,38604.0,38603.0,0.3508716]
[1643722759972,0.05,38604.0,38603.0,6.36e-05]
[1643722760720,0.05,38604.0,38599.0,20.01772297]
[1643722760721,0.05,38604.0,38599.0,20.01278657]
[1643722760920,0.064771,38603.0,38600.0,0.59292158]
[1643722761122,0.064771,38603.0,38600.0,0.350808]
[1643722761322,0.114771,38603.0,38600.0,0.59095578]
[1643722761720,0.05,38602.0,38600.0,0.59095578]
[1643722761920,0.05,38602.0,38601.0,0.24315429]
[1643722762120,0.179543,38603.0,38601.0,0.59396229]
[1643722762322,0.179543,38603.0,38602.0,0.350808]
[1643722764671,0.179543,38603.0,38599.0,20.07755257]
[1643722764869,0.46534436,38603.0,38599.0,19.9149636]
[1643722766170,0.46534436,38603.0,38599.0,21.38155929]
[1643722766372,0.46534436,38603.0,38600.0,0.350808]
[1643722766574,0.46534436,38603.0,38599.0,19.9149636]
[1643722768021,0.46534436,38603.0,38601.0,6.148e-05]
[1643722768421,0.309088,38603.0,38601.0,6.148e-05]
[1643722769623,0.309088,38603.0,38602.0,0.350808]
[1643722769824,0.179543,38603.0,38602.0,0.62840592]
[1643722772669,0.179543,38603.0,38602.0,1.9984674]
[1643722773869,0.179543,38603.0,38602.0,0.6284674]
[1643722774072,0.179543,38603.0,38602.0,0.35086948]
[1643722774271,0.179543,38603.0,38602.0,6.148e-05]
[1643722775172,0.179543,38603.0,38602.0,0.35086948]
[1643722776223,0.179543,38603.0,38602.0,0.60485317]
[1643722776625,0.179543,38603.0,38602.0,0.35086948]
[1643722777229,0.179543,38603.0,38602.0,0.60291564]
[1643722777826,0.179543,38603.0,38602.0,0.35086948]
[1643722778727,0.179543,38603.0,38602.0,0.59390239]
[1643722778926,0.179543,38603.0,38602.0,0.35086948]
[1643722779174,0.179543,38603.0,38602.0,0.59030215]
[1643722779370,0.179543,38603.0,38602.0,1.96030215]
[1643722779569,0.179543,38603.0,38602.0,0.35086948]
[1643722780070,0.179543,38603.0,38602.0,6.148e-05]
[1643722780571,0.179543,38603.0,38602.0,0.35086948]
[1643722780771,0.179543,38603.0,38602.0,0.60364759]
[1643722780971,0.179543,38603.0,38602.0,0.35086948]
[1643722781374,0.179543,38603.0,38602.0,6.148e-05]
[1643722782573,0.194313,38601.0,38599.0,19.91502719]
[1643722782773,0.194313,38601.0,38600.0,0.350808]
[1643722782774,0.244313,38601.0,38600.0,0.350808]
[1643722783022,0.244313,38601.0,38600.0,0.59225625]
[1643722783420,0.24425121,38601.0,38600.0,0.350808]
[1643722784221,0.24425121,38601.0,38600.0,0.5914105]
[1643722785226,0.24425121,38601.0,38600.0,1.9614105]
[1643722786970,0.24425121,38601.0,38600.0,1.9501105]
[1643722788170,0.244313,38601.0,38600.0,1.9501105]
[1643722793842,0.01980602,38606.0,38601.0,0.064753]
[1643722794032,0.01980602,38606.0,38602.0,0.70229859]
[1643722794280,0.01,38609.0,38605.0,2.87631409]
[1643722794480,0.139512,38609.0,38606.0,2.05391736]
[1643722794677,0.01,38609.0,38606.0,2.05391736]
[1643722795579,0.244303,38607.0,38606.0,2.05391736]
[1643722796384,0.194303,38607.0,38606.0,2.15391736]
[1643722796581,0.194303,38607.0,38606.0,2.05391736]
[1643722797781,0.244303,38607.0,38606.0,2.05391736]
[1643722798027,0.244303,38607.0,38606.0,2.02780349]
[1643722798225,0.244303,38607.0,38606.0,1.99820907]
[1643722798427,0.194303,38607.0,38606.0,1.99820907]
[1643722798632,0.129473,38614.0,38606.0,2.32899907]
[1643722798931,0.00506739,38615.0,38613.0,0.28242467]
[1643722799129,0.00506739,38615.0,38614.0,2.05315659]
[1643722799329,0.00506739,38615.0,38614.0,2.14083659]
[1643722799528,0.04768027,38616.0,38615.0,2.62]
[1643722799729,0.04768027,38616.0,38615.0,3.122528]
[1643722799928,0.129448,38619.0,38615.0,3.122528]
[1643722800130,0.129448,38619.0,38617.0,0.064723]
[1643722800429,0.129448,38619.0,38618.0,2.03751055]
[1643722800633,0.129452,38621.0,38618.0,2.03751055]
[1643722800634,0.129447,38620.0,38618.0,2.03751055]
[1643722800830,0.129447,38620.0,38619.0,0.28501493]
[1643722801030,0.064723,38622.0,38620.0,1.37]
[1643722801330,0.064723,38622.0,38621.0,0.67026154]
[1643722801776,0.064723,38622.0,38621.0,2.04026154]
[1643722801976,0.129432,38624.0,38621.0,2.04026154]
[1643722802177,0.19415,38624.0,38622.0,0.21594544]
[1643722802377,0.12943704,38634.0,38622.0,0.21594544]
[1643722802378,0.258895,38638.0,38623.0,2.02284559]
[1643722802578,0.32645185,38642.0,38623.0,2.69891559]
[1643722802777,0.32645185,38642.0,38624.0,0.1]
[1643722802778,0.00019035,38642.0,38624.0,0.1]
[1643722802976,0.3762615,38645.0,38627.0,0.6482]
[1643722803180,0.3762615,38645.0,38628.0,2.872528]
[1643722803377,0.38082876,38647.0,38628.0,1.96666225]
[1643722803378,0.00147841,38630.0,38628.0,1.96666225]
[1643722803677,0.00147841,38630.0,38629.0,2.87164226]
[1643722803879,0.00147841,38630.0,38629.0,2.12417026]
[1643722804478,0.064701,38638.0,38629.0,2.12417026]
[1643722804778,0.00591276,38637.0,38636.0,1.37]
[1643722804979,0.00591276,38637.0,38636.0,1.772528]
[1643722805728,0.064698,38639.0,38636.0,1.772528]
[1643722805925,0.00147841,38638.0,38637.0,1.9655212]
[1643722806129,0.00147841,38638.0,38637.0,1.772528]
[1643722806327,0.064695,38641.0,38638.0,1.2]
[1643722806528,0.00591276,38644.0,38640.0,0.67411]
[1643722806727,0.00591276,38644.0,38642.0,0.6482]
[1643722806927,0.194017,38655.0,38643.0,0.42974921]
[1643722807127,0.194017,38655.0,38643.0,0.82933781]
[1643722807429,0.010356,38657.0,38645.0,0.1]
[1643722807629,0.010356,38657.0,38646.0,0.85206143]
[1643722807831,0.010356,38657.0,38652.0,0.6482]
[1643722808028,0.064655,38667.0,38653.0,0.6502166]
[1643722808229,0.00589798,38659.0,38655.0,1.37]
[1643722808430,0.0004928,38674.0,38660.0,1.37]
[1643722808629,0.064647,38669.0,38663.0,0.6482]
[1643722808829,0.0004928,38674.0,38664.0,0.6502166]
[1643722808830,0.01967938,38671.0,38664.0,0.6502166]
[1643722809030,0.01967938,38671.0,38666.0,1.37]
[1643722809279,0.01967938,38671.0,38670.0,1.37]
[1643722809477,0.01967938,38671.0,38670.0,1.772528]
[1643722810278,7.938e-05,38671.0,38670.0,1.872528]
[1643722810477,7.938e-05,38671.0,38670.0,2.292528]
[1643722810678,7.938e-05,38671.0,38670.0,2.312128]
[1643722811476,7.938e-05,38671.0,38670.0,2.212128]
[1643722811676,7.938e-05,38671.0,38670.0,2.312128]
[1643722812076,7.938e-05,38671.0,38670.0,2.212128]
[1643722812277,7.938e-05,38671.0,38670.0,2.860328]
[1643722813032,7.938e-05,38671.0,38670.0,2.960328]
[1643722813332,0.064622,38685.0,38673.0,1.63498151]
[1643722813536,0.0029712,38684.0,38676.0,0.6482]
[1643722813732,0.0029712,38684.0,38680.0,0.6482]
[1643722813931,0.0029712,38684.0,38682.0,1.37]
[1643722814133,0.0029712,38684.0,38683.0,1.050728]
[1643722814532,0.0029712,38684.0,38683.0,2.420728]
[1643722815131,0.0625892,38689.0,38684.0,0.9]
[1643722815331,0.0625892,38689.0,38685.0,0.402528]
[1643722815530,0.0625892,38689.0,38685.0,1.4219]
[1643722815531,0.06462,38688.0,38685.0,1.4219]
[1643722815732,0.06462,38688.0,38686.0,0.350628]
[1643722815931,0.11462,38688.0,38687.0,20.2119]
[1643722816134,0.11462,38688.0,38687.0,21.932528]
[1643722816530,0.02007114,38697.0,38687.0,21.932528]
[1643722816791,0.35848989,38713.0,38687.0,21.932528]
[1643722816792,0.6389,38711.0,38689.0,1.37]
[1643722816989,0.6389,38711.0,38692.0,0.6482]
[1643722817287,0.02153911,38700.0,38693.0,0.74858972]
[1643722817686,0.02153911,38700.0,38694.0,1.37]
[1643722817890,0.02153911,38700.0,38696.0,1.36914915]
[1643722817891,0.00144172,38698.0,38696.0,1.36914915]
[1643722818088,0.00144172,38698.0,38697.0,3.06773887]
[1643722818287,0.00576603,38704.0,38698.0,1.1]
[1643722818491,0.00576603,38704.0,38700.0,1.36914915]
[1643722818691,0.064579,38716.0,38703.0,1.25]
[1643722818891,0.09937,38711.0,38705.0,0.064574]
[1643722819088,0.09937,38711.0,38706.0,1.29678972]
[1643722819291,0.01,38719.0,38711.0,0.29273824]
[1643722819490,0.01,38719.0,38712.0,0.64858972]
[1643722819789,0.064558,38729.0,38714.0,1.25]
[1643722819990,0.05,38738.0,38719.0,0.03987]
[1643722820190,0.086742,38739.0,38725.0,1.72610634]
[1643722820439,0.086742,38739.0,38731.0,0.09130243]
[1643722820440,0.15296449,38739.0,38731.0,0.09130243]
[1643722820640,0.4226193,38756.0,38731.0,0.09130243]
[1643722820641,0.0026193,38756.0,38732.0,1.90480471]